bitfinex-derivatives/quotes_BTCF0:USTF0_20210102
["timestamp","ask_amount","ask_price","bid_price","bid_amount"]
[1609617985555,0.26117,32364.0,32329.0,0.093]
[1609617986145,0.21497,32364.0,32329.0,0.093]
[1609617986359,0.11583158,32359.0,32328.0,0.1625]
[1609617986557,0.22553158,32359.0,32328.0,0.1625]
[1609617986757,1.0,32357.0,32332.0,1.0]
[1609617988249,5.21497,32364.0,32356.0,0.18043158]
[1609617988449,0.04562,32357.0,32356.0,0.18043158]
[1609617988649,0.15337,32364.0,32357.0,0.0143]
[1609617988850,0.11287,32364.0,32357.0,0.0143]
[1609617989050,5.26036883,32444.0,32357.0,0.0143]
[1609617989253,5.26036883,32444.0,32357.0,0.1082]
[1609617989254,0.39145403,32430.0,32357.0,0.1082]
[1609617989650,0.00037869,32429.0,32357.0,0.1082]
[1609617989850,0.12490869,32429.0,32357.0,0.1082]
[1609617990251,0.00037869,32428.0,32424.0,0.18043158]
[1609617990450,0.12453,32429.0,32357.0,0.0143]
[1609617990651,0.12453,32429.0,32371.0,1.17321]
[1609617990851,0.02016657,32428.0,32371.0,1.17321]
[1609617991450,0.02016657,32428.0,32372.0,0.0929]
[1609617992050,0.12453,32429.0,32372.0,1.0929]
[1609617992251,0.12453,32429.0,32428.0,0.18043158]
[1609617992451,0.04243,32429.0,32428.0,0.18043158]
[1609617992652,0.2774,32446.0,32428.0,0.32895158]
[1609617992851,0.00037827,32429.0,32428.0,0.32895158]
[1609617993052,0.16397827,32446.0,32428.0,0.32895158]
[1609617993253,0.16077827,32446.0,32428.0,0.32895158]
[1609617993452,0.00037822,32444.0,32428.0,0.32895158]
[1609617993651,0.17308,32444.0,32428.0,0.32895158]
[1609617994051,0.0935,32443.0,32428.0,0.32895158]
[1609617994251,0.04747813,32443.0,32442.0,0.18043158]
[1609617994451,0.0471,32443.0,32442.0,0.18043158]
[1609617994652,0.18043158,32458.0,32442.0,0.18043158]
[1609617994851,0.00037812,32443.0,32442.0,0.18043158]
[1609617995253,0.00037812,32457.0,32442.0,0.18043158]
[1609617995652,0.0931,32456.0,32442.0,0.18043158]
[1609617996052,0.00037806,32465.0,32442.0,0.18043158]
[1609617996253,1.0,32515.0,32464.0,0.18043158]
[1609617996453,1.0,32497.0,32464.0,0.18043158]
[1609617996654,0.00037798,32477.0,32464.0,0.30286158]
[1609617996855,0.11944,32489.0,32464.0,0.30286158]
[1609617997457,0.00037796,32488.0,32464.0,0.30286158]
[1609617997657,0.00037796,32488.0,32464.0,0.18043158]
[1609617998059,0.00037796,32488.0,32464.0,0.17854814]
[1609617998270,0.00037796,32488.0,32487.0,0.18043158]
[1609617998864,0.09217796,32488.0,32487.0,0.27233158]
[1609617999259,0.00037796,32488.0,32487.0,0.18043158]
[1609617999459,0.11944,32489.0,32487.0,0.18043158]
[1609617999666,0.03037794,32488.0,32487.0,0.18043158]
[1609618000065,0.03037794,32488.0,32457.0,0.15603]
[1609618000264,0.18043158,32484.0,32480.0,0.18043158]
[1609618000464,0.18043158,32484.0,32457.0,0.15603]
[1609618000872,0.11263158,32484.0,32457.0,0.15603]
[1609618001072,0.03,32488.0,32457.0,0.15603]
[1609618001277,0.18043158,32485.0,32457.0,0.15603]
[1609618002073,0.17583158,32485.0,32458.0,0.0933]
[1609618002269,0.17583158,32485.0,32484.0,0.18043158]
[1609618003068,0.15153158,32485.0,32479.0,0.15547]
[1609618003673,0.05617158,32489.0,32479.0,0.15547]
[1609618003875,0.01817158,32489.0,32479.0,0.15547]
[1609618004071,0.18043158,32494.0,32479.0,0.15547]
[1609618004271,0.18043158,32494.0,32485.0,0.18043158]
[1609618004467,4.1896,32522.0,32485.0,0.18043158]
[1609618004669,0.093,32533.0,32485.0,0.18043158]
[1609618004877,0.00037789,32521.0,32485.0,0.18043158]
[1609618005066,0.12618789,32521.0,32485.0,0.18043158]
[1609618005266,0.12581,32521.0,32485.0,0.18043158]
[1609618006275,0.18043158,32502.0,32485.0,0.18043158]
[1609618006468,0.15596,32507.0,32485.0,0.18043158]
[1609618006879,0.15596,32507.0,32486.0,0.092]
[1609618007068,0.15596,32507.0,32486.0,0.25743]
[1609618008070,0.15596,32507.0,32486.0,0.16543]
[1609618008272,0.18043158,32498.0,32495.0,0.18043158]
[1609618008484,0.15596,32507.0,32495.0,0.18043158]
[1609618008672,0.16333,32498.0,32495.0,0.18043158]
[1609618009171,0.01992817,32497.0,32495.0,0.18043158]
[1609618009974,0.11284,32497.0,32471.0,0.11914]
[1609618010172,0.01992734,32496.0,32458.0,4.1675]
[1609618010373,1.01992734,32496.0,32482.0,0.18043158]
[1609618010772,0.01993038,32495.0,32482.0,0.18043158]
[1609618011172,0.01993038,32495.0,32467.0,1.0]
[1609618012071,0.55595067,32496.0,32467.0,1.0]
[1609618012272,0.55595067,32496.0,32486.0,0.18043158]
[1609618012475,0.07556727,32496.0,32458.0,4.1675]
[1609618012675,0.11284,32497.0,32458.0,4.1675]
[1609618012875,0.11284,32497.0,32435.0,0.17001]
[1609618013076,0.11284,32497.0,32444.0,0.15951]
[1609618013275,0.01960087,32496.0,32444.0,0.15951]
[1609618014076,0.01960087,32496.0,32435.0,0.17001]
[1609618014277,0.18043158,32463.0,32449.0,0.18043158]
[1609618014477,1.0,32457.0,32449.0,0.18043158]
[1609618014880,1.0,32457.0,32440.0,1.0]
[1609618015080,0.01960525,32456.0,32440.0,1.0]
[1609618015280,0.16125525,32456.0,32440.0,1.0]
[1609618015881,0.019621,32455.0,32440.0,1.0]
[1609618016280,0.019621,32455.0,32441.0,0.18043158]
[1609618017681,0.00037832,32455.0,32441.0,0.18043158]
[1609618018082,0.00037809,32454.0,32441.0,0.18043158]
[1609618018283,0.00037809,32454.0,32439.0,0.17205]
[1609618018483,0.00037809,32455.0,32439.0,0.17205]
[1609618018886,0.14165,32456.0,32454.0,0.18043158]
[1609618019086,0.00037804,32455.0,32454.0,0.32677158]
[1609618019484,0.13352,32471.0,32454.0,0.32677158]
[1609618019686,0.15440963,32471.0,32454.0,0.32677158]
[1609618019887,0.000378,32470.0,32454.0,0.32677158]
[1609618020689,0.00037785,32471.0,32454.0,0.32677158]
[1609618020889,0.2732,32472.0,32470.0,0.18043158]
[1609618021088,0.0932,32471.0,32470.0,0.18043158]
[1609618021488,0.0935777,32471.0,32470.0,0.18043158]
[1609618021889,0.2732,32472.0,32470.0,0.18043158]
[1609618023790,0.00037765,32471.0,32470.0,0.18043158]
[1609618024191,0.15596,32507.0,32470.0,0.18043158]
[1609618024592,0.00037763,32496.0,32470.0,0.18043158]
[1609618024792,0.00037763,32496.0,32495.0,0.18043158]
[1609618024992,0.02086481,32506.0,32495.0,0.18043158]
[1609618025192,0.091,32507.0,32495.0,0.33595158]
[1609618025393,0.00037757,32506.0,32495.0,0.33595158]
[1609618025994,0.00037753,32506.0,32495.0,0.33595158]
[1609618026197,0.00075504,32506.0,32495.0,0.33595158]
[1609618026597,0.00037753,32506.0,32495.0,0.33595158]
[1609618026799,0.18080902,32505.0,32495.0,0.15552]
[1609618027200,0.18043158,32505.0,32495.0,0.15552]
[1609618027399,0.00037766,32504.0,32468.0,5.77594]
[1609618028401,0.00037776,32509.0,32503.0,6.0]
[1609618028800,0.00037761,32518.0,32508.0,0.18043158]
[1609618029001,0.00037752,32526.0,32508.0,0.18043158]
[1609618030202,0.15968,32527.0,32508.0,0.18043158]
[1609618030403,0.00037739,32526.0,32508.0,0.18043158]
[1609618030803,0.00037739,32526.0,32525.0,0.18043158]
[1609618031102,0.15968,32527.0,32525.0,0.18043158]
[1609618031302,0.00037738,32526.0,32525.0,0.18043158]
[1609618031706,0.15968,32527.0,32525.0,0.18043158]
[1609618031904,0.00037737,32526.0,32525.0,0.18043158]
[1609618032606,1.00037737,32526.0,32525.0,0.18043158]
[1609618033905,1.0,32526.0,32525.0,0.18043158]
[1609618034506,0.15968,32527.0,32525.0,0.18043158]
[1609618034706,0.2713,32545.0,32525.0,0.18043158]
[1609618034908,0.2713,32545.0,32544.0,0.18043158]
[1609618035507,0.27167723,32545.0,32544.0,0.18043158]
[1609618035707,0.2713,32545.0,32544.0,0.18043158]
[1609618037208,0.0922,32554.0,32544.0,0.18043158]
[1609618037411,0.2904,32563.0,32544.0,0.18043158]
[1609618038310,0.0916,32562.0,32544.0,0.18043158]
[1609618038911,0.0916,32562.0,32561.0,0.18043158]
[1609618039510,0.47083158,32563.0,32561.0,0.18043158]
[1609618039711,0.2904,32563.0,32561.0,0.18043158]
[1609618039910,0.2904,32563.0,32540.0,0.1508]
[1609618040612,0.2904,32563.0,32532.0,0.1691]
[1609618041012,0.2904,32563.0,32529.0,0.13704]
[1609618041212,0.00037726,32562.0,32529.0,0.13704]
[1609618041618,0.2904,32563.0,32529.0,0.13704]
[1609618042013,0.00037723,32562.0,32526.0,0.02]
[1609618042914,0.18043158,32540.0,32534.0,0.18043158]
[1609618043114,0.091,32539.0,32534.0,0.18043158]
[1609618044116,0.15465,32540.0,32534.0,0.18043158]
[1609618044516,1.15465,32540.0,32534.0,0.18043158]
[1609618044917,1.15465,32540.0,32539.0,0.18043158]
[1609618045122,1.24645,32540.0,32539.0,0.18043158]
[1609618045319,1.15465,32540.0,32539.0,0.18043158]
[1609618046321,1.24715,32540.0,32539.0,0.18043158]
[1609618046522,0.15465,32540.0,32539.0,0.18043158]
[1609618046724,0.2904,32563.0,32539.0,0.18043158]
[1609618046922,0.2904,32563.0,32561.0,0.18043158]
[1609618047123,0.2904,32563.0,32535.0,0.0097]
[1609618048925,0.2904,32563.0,32551.0,0.18043158]
[1609618049126,0.000377,32562.0,32551.0,0.18043158]
[1609618049528,0.000377,32562.0,32535.0,0.0097]
[1609618050431,1.0,32536.0,32535.0,0.0097]
[1609618051032,1.0,32536.0,32535.0,0.19013158]
[1609618051232,0.18043158,32545.0,32535.0,0.19013158]
[1609618052534,0.02578158,32545.0,32535.0,0.19013158]
[1609618052732,0.12639,32551.0,32535.0,0.19013158]
[1609618052934,0.12639,32551.0,32550.0,0.18043158]
[1609618053334,0.12676717,32551.0,32550.0,0.18043158]
[1609618054134,0.12639,32551.0,32550.0,0.18043158]
[1609618055235,0.12676703,32551.0,32550.0,0.18043158]
[1609618058146,0.12676701,32551.0,32550.0,0.18043158]
[1609618059441,1.12676701,32551.0,32550.0,0.18043158]
[1609618061442,0.12676701,32551.0,32550.0,0.18043158]
[1609618061843,0.12676701,32551.0,32536.0,0.11894]
[1609618062242,0.00037701,32550.0,32535.0,0.0097]
[1609618062945,0.00037701,32550.0,32549.0,0.18043158]
[1609618064245,0.00037695,32562.0,32549.0,0.18043158]
[1609618065049,0.00037695,32562.0,32561.0,0.18043158]
[1609618067748,0.02080963,32599.0,32561.0,0.18043158]
[1609618068151,0.00037687,32562.0,32561.0,0.18043158]
[1609618068350,0.17376,32578.0,32561.0,0.18043158]
[1609618068552,0.00037684,32562.0,32561.0,0.18043158]
[1609618068852,0.0003768,32577.0,32561.0,0.18043158]
[1609618069050,0.0003768,32577.0,32576.0,0.18043158]
[1609618069250,0.12002,32585.0,32576.0,0.18043158]
[1609618069451,0.00037681,32577.0,32576.0,0.18043158]
[1609618069851,0.00037677,32584.0,32576.0,0.18043158]
[1609618070152,0.00037677,32577.0,32576.0,0.18043158]
[1609618070451,0.00037675,32583.0,32576.0,0.18043158]
[1609618070651,0.00037675,32577.0,32576.0,0.18043158]
[1609618070951,0.00037673,32584.0,32576.0,0.18043158]
[1609618071352,0.00037673,32577.0,32576.0,0.18043158]
[1609618071552,0.0916767,32583.0,32576.0,0.18043158]
[1609618071752,0.0003767,32577.0,32576.0,0.18043158]
[1609618072152,0.00037666,32582.0,32576.0,0.18043158]
[1609618072354,0.0003767,32577.0,32576.0,0.18043158]
[1609618072553,0.00037666,32582.0,32576.0,0.18043158]
[1609618072753,0.00037666,32582.0,32576.0,0.33034158]
[1609618072954,0.15147,32598.0,32576.0,0.33034158]
[1609618073154,0.092,32597.0,32581.0,0.18043158]
[1609618073356,0.09237666,32597.0,32581.0,0.18043158]
[1609618073756,0.00037666,32596.0,32581.0,0.18043158]
[1609618074058,0.15147,32598.0,32581.0,0.18043158]
[1609618074255,0.00037665,32595.0,32581.0,0.18043158]
[1609618074456,0.00037665,32594.0,32581.0,0.18043158]
[1609618074956,0.00037663,32597.0,32581.0,0.18043158]
[1609618075156,0.00037663,32597.0,32596.0,0.18043158]
[1609618075356,0.15147,32598.0,32596.0,0.18043158]
[1609618075557,0.00037662,32597.0,32596.0,0.18043158]
[1609618076859,0.00037662,32599.0,32596.0,0.18043158]
[1609618077258,0.00037662,32597.0,32596.0,0.18043158]
[1609618077457,0.09217662,32598.0,32596.0,0.18043158]
[1609618077660,0.00037662,32597.0,32596.0,0.18043158]
[1609618078160,0.00037663,32597.0,32596.0,0.18043158]
[1609618078661,0.00037668,32598.0,32596.0,0.18043158]
[1609618079266,0.0912,32597.0,32596.0,0.18043158]
[1609618079765,0.09157665,32597.0,32596.0,0.18043158]
[1609618080362,0.09157663,32597.0,32596.0,0.18043158]
[1609618080763,0.00037663,32597.0,32596.0,0.18043158]
[1609618081167,0.00037663,32598.0,32596.0,0.18043158]
[1609618081365,0.00037659,32599.0,32596.0,0.18043158]
[1609618081765,0.093,32598.0,32596.0,0.18043158]
[1609618081965,0.00037659,32599.0,32596.0,0.18043158]
[1609618082265,0.00037655,32597.0,32596.0,0.18043158]
[1609618082466,1.0,32600.0,32596.0,0.18043158]
[1609618082866,0.0921,32599.0,32596.0,0.18043158]
[1609618083465,0.00037654,32598.0,32596.0,0.18043158]
[1609618084867,0.00037651,32599.0,32596.0,0.18043158]
[1609618085067,0.00037649,32597.0,32596.0,0.18043158]
[1609618085268,0.00037649,32597.0,32596.0,0.29034158]
[1609618085467,0.00037645,32598.0,32596.0,0.29034158]
[1609618085667,0.00037643,32599.0,32596.0,0.29034158]
[1609618086367,0.0931,32598.0,32596.0,0.29034158]
[1609618086968,1.0,32600.0,32596.0,0.29034158]
[1609618087773,1.0,32600.0,32599.0,0.0299]
[1609618087971,0.7562,32600.0,32599.0,0.0299]
[1609618089371,0.3812834,32600.0,32599.0,0.0299]
[1609618090071,0.4727834,32600.0,32599.0,0.0299]
[1609618090570,0.3812834,32600.0,32599.0,0.0299]
[1609618091071,0.4743834,32600.0,32599.0,0.0299]
[1609618091873,0.3812834,32600.0,32599.0,0.0299]
[1609618092773,0.4744834,32600.0,32599.0,0.0299]
[1609618093674,0.1932989,32600.0,32599.0,0.0299]
[1609618093873,0.1000989,32600.0,32599.0,0.0299]
[1609618094875,0.1914989,32600.0,32599.0,0.0299]
[1609618095275,0.1000989,32600.0,32599.0,0.0299]
[1609618095475,1.1000989,32600.0,32599.0,0.0299]
[1609618096375,1.1932989,32600.0,32599.0,0.0299]
[1609618096575,1.19367519,32600.0,32599.0,0.0299]
[1609618096878,1.1000989,32600.0,32599.0,0.0299]
[1609618097478,0.1933989,32600.0,32599.0,1.0299]
[1609618099481,0.1933989,32600.0,32599.0,6.0299]
[1609618099681,0.1000989,32600.0,32599.0,7.0299]
[1609618099882,0.55351399,32665.0,32599.0,7.0299]
[1609618100082,0.55351399,32665.0,32608.0,3.9848]
[1609618100282,0.00037598,32632.0,32608.0,5.14173]
[1609618100582,0.0906,32631.0,32608.0,5.14173]
[1609618101182,0.00037591,32630.0,32609.0,0.00036925]
[1609618101986,0.00037591,32639.0,32608.0,5.14173]
[1609618102586,0.13254,32640.0,32608.0,5.14173]
[1609618103091,0.13254,32640.0,32639.0,0.18043158]
[1609618103498,0.0907,32640.0,32639.0,0.18043158]
[1609618104089,35.05,35500.0,32639.0,0.18043158]
[1609618104288,0.00037594,32652.0,32639.0,0.18043158]
[1609618104689,0.14164594,32652.0,32639.0,0.18043158]
[1609618104888,0.14127,32652.0,32639.0,0.18043158]
[1609618105089,0.14127,32652.0,32651.0,0.18043158]
[1609618106193,0.23307,32652.0,32651.0,0.18043158]
[1609618107091,0.14127,32652.0,32651.0,0.18043158]
[1609618107490,0.18043158,32677.0,32651.0,0.18043158]
[1609618108091,5.1923,32705.0,32651.0,0.18043158]
[1609618108591,0.00037564,32687.0,32651.0,0.18043158]
[1609618108793,0.13181564,32687.0,32651.0,0.18043158]
[1609618109193,0.31224722,32687.0,32686.0,0.18043158]
[1609618109394,0.31187158,32687.0,32686.0,0.18043158]
[1609618109595,0.13144,32687.0,32686.0,0.18043158]
[1609618111197,0.31187158,32687.0,32667.0,0.12377]
[1609618111396,0.31187158,32687.0,32660.0,0.1184]
[1609618112096,0.00037563,32686.0,32660.0,0.1184]
[1609618113098,0.00037563,32686.0,32682.0,0.18043158]
[1609618113496,0.13144,32687.0,32682.0,0.18043158]
[1609618113697,0.00037562,32686.0,32682.0,0.18043158]
[1609618114098,0.00037562,32686.0,32660.0,0.1184]
[1609618114299,0.00037562,32686.0,32643.0,5.0711]
[1609618115300,0.00037562,32686.0,32665.0,0.18043158]
[1609618116703,0.00037562,32686.0,32643.0,5.0711]
[1609618117306,0.32838158,32670.0,32665.0,0.18043158]
[1609618117604,0.14795,32670.0,32665.0,0.18043158]
[1609618118405,0.1211,32678.0,32665.0,0.18043158]
[1609618119206,0.1211,32678.0,32677.0,0.18043158]
[1609618123412,0.13144,32687.0,32677.0,0.18043158]
[1609618123611,1.0,32678.0,32677.0,0.18043158]
[1609618123811,1.13332,32678.0,32677.0,0.18043158]
[1609618125513,0.13332,32678.0,32677.0,0.18043158]
[1609618126014,0.1361,32686.0,32677.0,0.18043158]
[1609618127419,0.1361,32686.0,32685.0,0.18043158]
[1609618127819,0.1364755,32686.0,32685.0,0.18043158]
[1609618128319,0.1361,32686.0,32685.0,0.18043158]
[1609618128518,0.5734,32688.0,32685.0,0.18043158]
[1609618130419,0.00037549,32687.0,32685.0,0.18043158]
[1609618131317,0.18080707,32687.0,32685.0,0.18043158]
[1609618131518,0.18043158,32687.0,32685.0,0.18043158]
[1609618132521,0.5734,32688.0,32685.0,0.18043158]
[1609618133521,1.0,32686.0,32685.0,0.18043158]
[1609618135523,0.18043158,32707.0,32685.0,0.18043158]
[1609618135923,0.00037533,32706.0,32685.0,0.18043158]
[1609618137425,0.00037533,32706.0,32705.0,0.18043158]
[1609618143735,0.00037533,32706.0,32705.0,0.10597]
[1609618143935,0.00037533,32706.0,32697.0,0.12133]
[1609618144136,0.00037533,32706.0,32669.0,5.00057]
[1609618145337,0.00037533,32706.0,32695.0,0.18043158]
[1609618147337,0.18043158,32696.0,32695.0,0.18043158]
[1609618147738,0.00037522,32696.0,32695.0,0.18043158]
[1609618148139,0.00037526,32705.0,32695.0,0.18043158]
[1609618148341,0.00037526,32696.0,32695.0,0.18043158]
[1609618148543,0.00037526,32704.0,32695.0,0.18043158]
[1609618148940,0.00037528,32696.0,32695.0,0.18043158]
[1609618149141,1.15966,32701.0,32695.0,0.18043158]
[1609618149340,1.15966,32701.0,32700.0,0.18043158]
[1609618149539,1.15966,32701.0,32700.0,0.16043158]
[1609618149739,1.15966,32701.0,32686.0,0.1717]
[1609618149940,1.16003527,32701.0,32680.0,3.4865]
[1609618150443,0.00037529,32700.0,32680.0,3.4865]
[1609618150940,0.00037529,32700.0,32669.0,0.10767]
[1609618151140,1.0,32696.0,32650.0,1.46732853]
[1609618151340,1.0,32696.0,32671.0,0.18043158]
[1609618151540,0.00037537,32695.0,32671.0,0.18043158]
[1609618152641,1.00037537,32695.0,32671.0,0.18043158]
[1609618153043,0.00037537,32694.0,32671.0,0.18043158]
[1609618153242,0.16738537,32694.0,32671.0,0.18043158]
[1609618153442,0.18043158,32678.0,32659.0,4.2989]
[1609618153643,0.18043158,32678.0,32650.0,0.46732853]
[1609618153843,0.00037537,32677.0,32650.0,0.46732853]
[1609618154342,0.18043158,32678.0,32650.0,0.46732853]
[1609618154642,0.00037541,32675.0,32650.0,0.46732853]
[1609618155545,6.0,32663.0,32650.0,0.46732853]
[1609618156545,6.0,32663.0,32662.0,1.98793319]
[1609618156945,6.0,32663.0,32662.0,1.98755824]
[1609618157345,6.0,32663.0,32662.0,2.16836477]
[1609618157546,0.12604,32673.0,32662.0,2.16836477]
[1609618158246,0.12604,32673.0,32663.0,0.00037495]
[1609618158647,0.12604,32673.0,32662.0,2.16798982]
[1609618158947,0.12604,32673.0,32664.0,0.00037494]
[1609618159148,0.12604,32673.0,32663.0,0.00037494]
[1609618159352,0.12604,32673.0,32672.0,0.18043158]
[1609618160849,0.12604,32673.0,32672.0,0.18080641]
[1609618161550,0.0003754,32676.0,32672.0,0.18080641]
[1609618161949,0.0003754,32676.0,32673.0,0.00037478]
[1609618168454,1.0,32688.0,32673.0,1.00037478]
[1609618169055,1.0,32688.0,32674.0,0.00037466]
[1609618169255,1.0,32688.0,32674.0,0.14996977]
[1609618169455,1.0,32688.0,32687.0,0.18043158]
[1609618169656,0.15966,32701.0,32687.0,0.18043158]
[1609618169855,0.15966,32701.0,32687.0,4.51403158]
[1609618170055,0.03,32707.0,32688.0,0.0003746]
[1609618171556,0.03,32707.0,32706.0,0.18043158]
[1609618177667,0.03,32707.0,32706.0,3.66263158]
[1609618179769,0.2781,32734.0,32706.0,3.66263158]
[1609618180969,0.2781,32734.0,32706.0,4.66263158]
[1609618181469,0.2781,32734.0,32733.0,0.18043158]
[1609618181876,1.2781,32734.0,32710.0,0.14384]
[1609618182271,1.44207,32734.0,32710.0,0.14384]
[1609618182670,1.44207,32734.0,32706.0,0.0158]
[1609618183171,1.0,32733.0,32706.0,0.0158]
[1609618183470,0.18043158,32721.0,32720.0,0.18043158]
[1609618183670,0.29272158,32721.0,32720.0,0.18043158]
[1609618184071,0.11229,32721.0,32720.0,0.18043158]
[1609618185770,0.11229,32721.0,32720.0,5.13613158]
[1609618187878,0.02440863,32737.0,32720.0,5.29079158]
[1609618188077,0.02440863,32737.0,32721.0,0.0003743]
[1609618188278,0.02440863,32737.0,32730.0,4.1758]
[1609618188477,1.02440863,32737.0,32721.0,0.0003743]
[1609618189078,1.02440863,32737.0,32706.0,0.0158]
[1609618189277,1.0,32730.0,32706.0,0.0158]
[1609618189479,1.0,32729.0,32711.0,0.00037433]
[1609618189677,1.0,32729.0,32707.0,0.0003744]
[1609618189877,0.00037492,32728.0,32706.0,0.19623158]
[1609618190577,0.00037492,32728.0,32706.0,0.0158]
[1609618190778,1.0,32727.0,32706.0,0.0158]
[1609618191390,1.0,32725.0,32706.0,0.0158]
[1609618191596,0.18043158,32711.0,32706.0,0.19623158]
[1609618191781,0.29766158,32711.0,32706.0,0.19623158]
[1609618191989,0.29766158,32711.0,32707.0,0.00037447]
[1609618192396,1.29766158,32711.0,32707.0,0.00037447]
[1609618192589,1.29766158,32711.0,32706.0,0.0158]
[1609618193282,0.29766158,32711.0,32706.0,0.0158]
[1609618193483,0.00037503,32710.0,32706.0,0.0158]
[1609618195587,0.00037503,32710.0,32680.0,2.02259654]
[1609618195588,1.0,32706.0,32696.0,0.18043158]
[1609618195987,1.0,32706.0,32697.0,0.0003746]
[1609618196285,0.00037507,32705.0,32697.0,0.0003746]
[1609618196487,6.18043158,32707.0,32697.0,0.0003746]
[1609618196687,6.0,32707.0,32697.0,0.0003746]
[1609618197088,0.00037505,32706.0,32697.0,0.0003746]
[1609618197486,0.00037505,32706.0,32705.0,0.18043158]
[1609618197987,0.00037505,32706.0,32705.0,0.18080719]
[1609618198188,0.00037502,32709.0,32706.0,0.02]
[1609618198387,0.00037502,32710.0,32706.0,0.02]
[1609618199288,1.00037502,32710.0,32706.0,0.02]
[1609618199492,0.18043158,32707.0,32706.0,0.02]
[1609618199887,7.18043158,32707.0,32706.0,0.02]
[1609618200288,7.17043158,32707.0,32706.0,0.02]
[1609618201112,5.98,32707.0,32706.0,0.02]
[1609618201498,1.0,32707.0,32706.0,0.20043158]
[1609618201892,1.0,32707.0,32706.0,0.20080713]
[1609618203393,0.2755,32710.0,32706.0,0.20080713]
[1609618203993,0.2755,32710.0,32707.0,0.0003755]
[1609618205395,1.0,32708.0,32707.0,0.0003755]
[1609618207395,0.2755,32710.0,32707.0,0.0003755]
[1609618213300,0.07853,32711.0,32707.0,0.0003755]
[1609618213503,6.0,32708.0,32707.0,0.0003755]
[1609618214901,6.13806,32708.0,32707.0,0.0003755]
[1609618215403,0.13806,32708.0,32707.0,0.0003755]
[1609618215603,0.13806,32708.0,32707.0,0.18080708]
[1609618217909,1.13806,32708.0,32707.0,0.18080708]
[1609618218411,0.13806,32708.0,32707.0,0.18080708]
[1609618218912,1.13806,32708.0,32707.0,0.18080708]
[1609618219712,1.31849158,32708.0,32707.0,0.0003755]
[1609618227421,7.31849158,32708.0,32707.0,0.0003755]
[1609618229025,7.31849158,32708.0,32706.0,0.02]
[1609618229426,1.31849158,32708.0,32690.0,2.04078849]
[1609618229825,1.13806,32708.0,32693.0,0.18043158]
[1609618230327,0.03,32707.0,32694.0,0.00037561]
[1609618231329,6.0,32695.0,32694.0,0.00037561]
[1609618231529,7.0,32695.0,32694.0,0.00037561]
[1609618231731,7.18043158,32695.0,32694.0,0.00037561]
[1609618231929,6.18043158,32695.0,32686.0,0.21831247]
[1609618232130,6.0,32695.0,32686.0,0.21831247]
[1609618232329,6.0,32695.0,32694.0,0.00037558]
[1609618232529,7.0,32695.0,32687.0,0.03787913]
[1609618232729,7.0,32695.0,32694.0,0.00037555]
[1609618233031,7.0,32695.0,32688.0,0.00037555]
[1609618233231,7.0,32695.0,32694.0,0.00037555]
[1609618233430,6.0,32695.0,32694.0,0.00037555]
[1609618233630,6.0,32695.0,32689.0,0.00037555]
[1609618233830,6.0,32695.0,32694.0,0.18043158]
[1609618234032,6.0,32695.0,32694.0,0.18080711]
[1609618235333,1.0,32695.0,32694.0,0.18080711]
[1609618236534,1.0,32695.0,32694.0,0.21830368]
[1609618237335,0.10579,32697.0,32694.0,0.21830368]
[1609618237535,1.0,32702.0,32694.0,0.21830368]
[1609618237736,1.0,32702.0,32687.0,5.0417]
[1609618237737,1.21043158,32707.0,32701.0,0.18043158]
[1609618238336,1.21043158,32707.0,32702.0,0.00037548]
[1609618239840,1.21043158,32707.0,32706.0,0.18043158]
[1609618240039,0.03,32707.0,32706.0,0.18043158]
[1609618240240,0.03,32707.0,32706.0,0.18080706]
[1609618241346,1.03,32707.0,32706.0,0.18080706]
[1609618249355,0.03,32707.0,32706.0,0.18080706]
[1609618249555,0.03,32707.0,32706.0,0.21828841]
[1609618249956,0.03,32707.0,32706.0,0.18080706]
[1609618250155,0.03,32707.0,32706.0,2.22556051]
[1609618251057,0.03,32707.0,32706.0,2.26304062]
[1609618255365,1.03,32707.0,32706.0,2.26304062]
[1609618257364,0.03,32707.0,32706.0,2.26304062]
[1609618257565,0.03,32707.0,32706.0,0.21828717]
[1609618259268,1.03,32707.0,32706.0,0.21828717]
[1609618261268,0.03,32707.0,32706.0,0.21828717]
[1609618263672,0.03,32707.0,32706.0,0.75008717]
[1609618265274,0.03,32707.0,32706.0,2.25957324]
[1609618266378,1.0,32711.0,32706.0,6.89538793]
[1609618266978,1.0,32711.0,32707.0,0.03785166]
[1609618267278,1.2862,32726.0,32707.0,0.03785166]
[1609618267679,0.2862,32726.0,32707.0,0.03785166]
[1609618267980,0.2862,32726.0,32725.0,0.18043158]
[1609618268181,1.2862,32726.0,32725.0,0.18043158]
[1609618268582,1.2862,32726.0,32725.0,0.18080931]
[1609618269181,0.2862,32726.0,32725.0,0.18080931]
[1609618269382,1.2862,32726.0,32725.0,0.18080931]
[1609618271485,1.2862,32726.0,32725.0,0.17080931]
[1609618273288,0.2862,32726.0,32725.0,0.17080931]
[1609618274090,0.2862,32726.0,32725.0,0.16080931]
[1609618275192,1.2862,32726.0,32725.0,0.16080931]
[1609618275393,1.2862,32726.0,32725.0,0.00037773]
[1609618275792,1.2862,32726.0,32714.0,2.03593288]
[1609618275992,0.18043158,32715.0,32714.0,2.03593288]
[1609618276192,1.18043158,32715.0,32712.0,0.32144158]
[1609618276393,1.18043158,32715.0,32714.0,0.00037778]
[1609618276792,1.18043158,32715.0,32713.0,0.00037778]
[1609618276994,1.18043158,32715.0,32714.0,0.00037778]
[1609618277395,1.18043158,32715.0,32713.0,0.00037781]
[1609618277794,1.18043158,32715.0,32714.0,0.00037781]
[1609618278195,1.18043158,32715.0,32713.0,0.00037781]
[1609618278597,1.18043158,32715.0,32714.0,0.00037781]
[1609618278898,1.0,32715.0,32714.0,0.00037781]
[1609618279097,1.0,32715.0,32713.0,0.00037779]
[1609618279297,1.0,32715.0,32714.0,0.00037779]
[1609618279798,1.0,32715.0,32713.0,0.00037779]
[1609618279999,0.01,32716.0,32713.0,0.00037779]
[1609618281101,0.01,32716.0,32714.0,0.00037775]
[1609618281702,0.01,32716.0,32713.0,0.00037775]
[1609618281902,0.01,32716.0,32715.0,0.00037773]
[1609618282300,0.01,32716.0,32713.0,0.00037773]
[1609618282502,0.01,32716.0,32715.0,0.00037773]
[1609618282701,0.01,32716.0,32714.0,0.00037773]